bitfinex/quotes_BTCUSD_20251024
["timestamp","ask_amount","ask_price","bid_price","bid_amount"]
[1761322522924,0.02727095,110160.0,110150.0,0.26932484]
[1761322523131,2.0,110160.0,110150.0,0.26932484]
[1761322523328,0.18292899,110160.0,110150.0,0.26932484]
[1761322523941,0.19400669,110160.0,110150.0,0.26932484]
[1761322524346,0.19200669,110160.0,110150.0,0.26932484]
[1761322524812,0.19400669,110160.0,110150.0,0.26932484]
[1761322525248,0.22127519,110160.0,110150.0,0.18157058]
[1761322525425,0.03064339,110160.0,110150.0,0.60613654]
[1761322525636,0.03064339,110160.0,110150.0,0.76653654]
[1761322525794,0.00337489,110160.0,110150.0,0.76653654]
[1761322526389,0.00337489,110160.0,110150.0,1.28092151]
[1761322526614,0.00137489,110160.0,110150.0,1.37074052]
[1761322526976,0.22491346,110180.0,110170.0,0.5577199]
[1761322527179,0.19779788,110180.0,110170.0,1.71519083]
[1761322527381,0.19779788,110180.0,110170.0,2.14901286]
[1761322527604,0.00014679,110180.0,110170.0,2.14901286]
[1761322527885,0.00014679,110180.0,110170.0,1.7244469]
[1761322529321,0.00014679,110180.0,110170.0,1.7496469]
[1761322530192,0.00014679,110180.0,110170.0,1.7546469]
[1761322530604,0.00214679,110180.0,110170.0,1.7786469]
[1761322532570,0.00214679,110180.0,110170.0,1.34478487]
[1761322532777,0.00283398,110180.0,110170.0,1.77833818]
[1761322533834,0.00283398,110180.0,110170.0,2.20290414]
[1761322534438,1e-08,110180.0,110170.0,2.21290413]
[1761322534637,1e-08,110180.0,110170.0,2.22290412]
[1761322535209,1e-08,110180.0,110170.0,2.64747008]
[1761322535418,1e-08,110200.0,110190.0,0.18150467]
[1761322535622,1e-08,110200.0,110190.0,2.15964382]
[1761322536051,1e-08,110200.0,110190.0,0.88594594]
[1761322536671,1e-08,110200.0,110190.0,0.91114594]
[1761322537304,0.025,110230.0,110220.0,0.20145525]
[1761322537523,0.02548921,110230.0,110220.0,1.1204062]
[1761322537739,0.02548921,110230.0,110220.0,0.86589656]
[1761322537940,0.02548921,110230.0,110220.0,1.74051769]
[1761322538362,0.02548921,110230.0,110220.0,2.17508364]
[1761322539486,0.0002,110240.0,110230.0,1.41675299]
[1761322539726,0.00034673,110240.0,110230.0,1.506572]
[1761322540571,0.0002,110260.0,110240.0,0.18142235]
[1761322540775,0.0002,110260.0,110240.0,1.70521924]
[1761322541391,0.0002,110260.0,110240.0,2.05521923]
[1761322541618,0.0002,110260.0,110240.0,2.08041923]
[1761322542273,0.0002,110260.0,110250.0,0.21758817]
[1761322542473,0.0002,110260.0,110250.0,1.2146191]
[1761322542775,0.0002,110260.0,110250.0,0.52576718]
[1761322542977,0.0002,110260.0,110250.0,1.00715289]
[1761322544026,0.0002,110260.0,110250.0,1.01545632]
[1761322544232,0.0002,110260.0,110250.0,1.02045632]
[1761322544442,0.0002,110260.0,110250.0,1.01150495]
[1761322544863,0.0002,110260.0,110250.0,0.97532267]
[1761322545070,0.0002,110260.0,110250.0,1.02150494]
[1761322545886,0.0002,110260.0,110250.0,1.03450494]
[1761322546223,0.0002,110260.0,110250.0,1.02450495]
[1761322546433,0.0002,110260.0,110250.0,1.02454495]
[1761322546842,0.0002,110260.0,110250.0,0.80614495]
[1761322547052,0.0002,110260.0,110250.0,0.84697696]
[1761322547286,0.0002,110260.0,110250.0,1.32836267]
[1761322547479,0.0002,110260.0,110250.0,1.36454495]
[1761322547897,0.0002,110260.0,110250.0,0.10781901]
[1761322548100,0.0002,110260.0,110250.0,0.46772548]
[1761322548302,0.00225971,110260.0,110250.0,0.4445849]
[1761322548725,0.00225971,110260.0,110250.0,0.34176589]
[1761322553878,0.00225971,110260.0,110250.0,0.94915289]
[1761322554214,0.00225971,110260.0,110250.0,0.4315849]
[1761322557118,0.18364915,110260.0,110240.0,0.18142235]
[1761322557374,0.18158944,110260.0,110250.0,0.18140589]
[1761322557538,0.20883275,110260.0,110240.0,0.34174235]
[1761322557746,0.00171658,110250.0,110240.0,0.34174235]
[1761322558548,0.00171658,110250.0,110240.0,0.34374235]
[1761322559151,0.00171658,110250.0,110240.0,0.34574235]
[1761322559937,0.18312247,110250.0,110240.0,0.34574235]
[1761322560137,0.18312247,110250.0,110240.0,0.34374235]
[1761322560365,0.00171658,110250.0,110240.0,0.34374235]
[1761322560565,0.02896138,110250.0,110240.0,0.34674235]
[1761322560971,0.02896138,110250.0,110240.0,0.34374235]
[1761322561740,0.02896138,110250.0,110240.0,0.34174235]
[1761322563504,0.00171658,110250.0,110240.0,0.91294707]
[1761322563861,0.00171658,110250.0,110240.0,0.43156136]
[1761322565741,0.00171658,110250.0,110240.0,0.34174235]
[1761322566140,0.02896101,110250.0,110240.0,0.34174235]
[1761322566519,0.00171658,110250.0,110240.0,0.34174235]
[1761322566721,0.00171658,110250.0,110240.0,0.18142235]
[1761322566928,0.00171658,110250.0,110240.0,0.34166235]
[1761322567903,0.18312247,110250.0,110240.0,0.34166235]
[1761322568146,0.00171658,110250.0,110240.0,0.34166235]
[1761322568308,0.21036724,110250.0,110240.0,0.34166235]
[1761322568819,0.00171658,110250.0,110240.0,0.34166235]
[1761322569025,0.02896135,110250.0,110240.0,0.34166235]
[1761322570258,0.21036724,110250.0,110240.0,0.34166235]
[1761322570460,0.02896135,110250.0,110240.0,0.34166235]
[1761322573069,0.21036724,110250.0,110240.0,0.34166235]
[1761322573725,0.02896135,110250.0,110240.0,0.34166235]
[1761322574487,0.00171658,110250.0,110240.0,1.71352368]
[1761322574690,0.00171658,110250.0,110240.0,1.76522746]
[1761322574824,0.00171658,110250.0,110240.0,1.797871]
[1761322575242,0.00171658,110250.0,110240.0,1.77340521]
[1761322575833,0.00171658,110250.0,110240.0,1.77840521]
[1761322576257,0.00171658,110250.0,110240.0,1.82737202]
[1761322576583,0.00171658,110250.0,110240.0,1.84037202]
[1761322576779,0.00171658,110250.0,110240.0,0.99259198]
[1761322577007,0.00171658,110250.0,110240.0,1.73731818]
[1761322577347,1e-08,110250.0,110240.0,1.75731816]
[1761322577549,1e-08,110250.0,110240.0,1.50635462]
[1761322577790,1e-08,110250.0,110240.0,1.72487462]
[1761322578207,1e-08,110250.0,110240.0,1.71487463]
[1761322578419,1e-08,110250.0,110240.0,1.72487462]
[1761322578718,1e-08,110250.0,110240.0,1.50635462]
[1761322579155,1e-08,110250.0,110240.0,1.72483462]
[1761322580938,6.28e-05,110260.0,110250.0,0.52140589]
[1761322581144,6.28e-05,110260.0,110250.0,1.41297821]
[1761322581350,6.28e-05,110260.0,110250.0,1.63141821]
[1761322581596,6.28e-05,110260.0,110250.0,1.57333821]
[1761322581782,6.28e-05,110260.0,110250.0,1.66760049]
[1761322582300,6.28e-05,110260.0,110250.0,1.67060049]
[1761322583356,6.28e-05,110260.0,110250.0,1.67260049]
[1761322584336,6.28e-05,110260.0,110250.0,1.64001357]
[1761322584501,6.28e-05,110260.0,110250.0,1.42157357]
[1761322584704,6.28e-05,110260.0,110250.0,1.63997357]
[1761322584923,6.28e-05,110260.0,110250.0,1.54571129]
[1761322585158,6.28e-05,110260.0,110250.0,0.8346649]
[1761322585568,6.28e-05,110260.0,110250.0,1.5793911]
[1761322586591,0.000406,110260.0,110250.0,1.5793911]
[1761322587977,0.000406,110260.0,110250.0,1.64001357]
[1761322591340,0.000406,110260.0,110250.0,1.67260049]
[1761322593610,1e-08,110260.0,110250.0,1.67260049]
[1761322593854,1e-08,110260.0,110250.0,1.82230049]
[1761322595759,1e-08,110260.0,110250.0,1.7978603]
[1761322595914,1e-08,110260.0,110250.0,1.82227956]
[1761322596307,1e-08,110260.0,110250.0,1.7978603]
[1761322598464,1e-08,110260.0,110250.0,1.01683182]
[1761322598667,1e-08,110260.0,110250.0,1.53507738]
[1761322598871,1e-08,110260.0,110250.0,0.2762249]
[1761322599076,1e-08,110260.0,110250.0,0.91830195]
[1761322599316,1e-08,110260.0,110250.0,1.25830195]
[1761322599517,1e-08,110260.0,110250.0,0.91830195]
[1761322601423,1e-08,110260.0,110250.0,0.4945849]
[1761322602263,1e-08,110260.0,110250.0,0.4915849]
[1761322602470,2.18136028,110280.0,110260.0,0.18138944]
[1761322602588,0.18150693,110280.0,110260.0,0.18138944]
[1761322603001,0.18150693,110280.0,110260.0,0.34166944]
[1761322603002,0.18171616,110270.0,110260.0,0.34166944]
[1761322603201,0.00034317,110270.0,110260.0,0.34166944]
[1761322605831,0.1318501,110280.0,110270.0,0.18137299]
[1761322607802,0.1328501,110280.0,110260.0,0.34166944]
[1761322608185,0.1328501,110280.0,110270.0,0.18137299]
[1761322608398,0.1328501,110280.0,110260.0,0.34166913]
[1761322608779,0.1318501,110280.0,110260.0,0.34166913]
[1761322609150,0.1328501,110280.0,110260.0,0.34166913]
[1761322609376,0.1328501,110280.0,110270.0,0.18137299]
[1761322609582,0.18136028,110280.0,110260.0,0.34166913]
[1761322609940,0.18136028,110280.0,110260.0,0.34166944]
[1761322610727,0.18135654,110280.0,110260.0,0.8552055]
[1761322610953,0.18235654,110280.0,110270.0,0.18137299]
[1761322611556,0.18169965,110280.0,110270.0,0.18137299]
[1761322612066,0.18269965,110280.0,110270.0,0.18137299]
[1761322612476,0.00134311,110280.0,110270.0,0.18137299]
[1761322612704,0.00034311,110280.0,110270.0,0.18137299]
[1761322614167,0.00034311,110280.0,110270.0,0.60509004]
[1761322614391,0.00034311,110280.0,110270.0,0.18137299]
[1761322617443,0.18169965,110280.0,110270.0,0.18137299]
[1761322617928,0.18169965,110280.0,110260.0,0.34166944]
[1761322618166,0.18169965,110280.0,110270.0,0.18137299]
[1761322618294,0.18137299,110270.0,110260.0,0.18138944]
[1761322618709,0.18137299,110270.0,110260.0,0.1602]
[1761322619319,0.18138944,110260.0,110250.0,0.19047618]
[1761322619573,0.18138944,110260.0,110250.0,0.35067618]
[1761322620197,0.18138944,110260.0,110250.0,0.18140589]
[1761322620749,0.18138944,110260.0,110240.0,0.35069346]
[1761322621191,0.18140589,110250.0,110240.0,0.19049346]
[1761322621397,0.18140589,110250.0,110240.0,0.35069346]
[1761322622955,0.18138944,110260.0,110240.0,0.35069346]
[1761322623399,0.18140589,110250.0,110240.0,0.35069346]
[1761322623581,0.18138944,110260.0,110240.0,0.35069346]
[1761322624117,0.18138944,110260.0,110250.0,0.18140589]
[1761322624925,0.18138944,110260.0,110250.0,0.60512294]
[1761322625100,0.18138944,110260.0,110250.0,0.18140589]
[1761322626018,0.19044163,110270.0,110250.0,0.18140589]
[1761322626198,0.53044163,110270.0,110260.0,0.18138944]
[1761322626417,0.53044163,110270.0,110260.0,0.60510649]
[1761322626418,0.34,110270.0,110260.0,0.60510649]
[1761322626580,0.52137299,110270.0,110260.0,0.18138944]
[1761322626774,0.19076747,110280.0,110260.0,0.18138944]
[1761322627033,0.19076747,110280.0,110270.0,0.18137299]
[1761322627201,0.53076747,110280.0,110270.0,0.18137299]
[1761322627407,0.5476352,110280.0,110270.0,0.18137299]
[1761322627847,0.53076747,110280.0,110270.0,0.18137299]
[1761322628200,0.19076747,110280.0,110270.0,0.18137299]
[1761322628403,0.19857519,110280.0,110270.0,0.18137299]
[1761322628600,0.18169965,110280.0,110270.0,0.18137299]
[1761322629183,0.18269965,110280.0,110270.0,0.18137299]
[1761322629649,0.00134311,110280.0,110270.0,0.18137299]
[1761322630467,0.00034311,110280.0,110270.0,0.18137299]
[1761322631302,0.00034311,110280.0,110270.0,0.6626818]
[1761322631726,0.00034311,110280.0,110270.0,0.75250081]
[1761322633652,0.00034311,110280.0,110270.0,0.78868309]
[1761322634947,0.00034311,110280.0,110270.0,0.79795229]
[1761322635581,1e-08,110280.0,110270.0,1.65370438]
[1761322635795,1e-08,110280.0,110270.0,1.66370437]
[1761322636034,1e-08,110280.0,110270.0,1.72351539]
[1761322637072,1e-08,110280.0,110270.0,1.9368354]
[1761322637305,1e-08,110280.0,110270.0,1.96583539]
[1761322637508,1e-08,110280.0,110270.0,1.89924848]
[1761322637716,1e-08,110280.0,110270.0,1.90424848]
[1761322637943,1e-08,110280.0,110270.0,1.92524848]
[1761322639789,1e-08,110280.0,110270.0,1.41941638]
[1761322640174,1e-08,110280.0,110270.0,1.20117638]
[1761322640431,1e-08,110280.0,110270.0,1.40941639]
[1761322642060,1e-08,110280.0,110270.0,1.44200331]
[1761322642385,1e-08,110280.0,110270.0,1.46637844]
[1761322642928,1e-08,110280.0,110270.0,1.47637843]
[1761322643128,1e-08,110280.0,110270.0,1.46637844]
[1761322644319,1e-08,110280.0,110270.0,1.47637843]
[1761322644671,1e-08,110280.0,110270.0,0.35774941]
[1761322644849,1e-08,110280.0,110270.0,0.53976713]
[1761322645082,1e-08,110280.0,110270.0,0.99670081]
[1761322646735,1e-08,110280.0,110270.0,0.97070081]
[1761322646949,1e-08,110280.0,110270.0,0.98170081]
[1761322647624,1e-08,110280.0,110270.0,0.9814569]
[1761322648627,1e-08,110280.0,110270.0,0.9814969]
[1761322648843,1e-08,110280.0,110270.0,0.7632569]
[1761322649062,1e-08,110280.0,110270.0,0.9814969]
[1761322649852,1e-08,110280.0,110270.0,0.44214809]
[1761322650276,1e-08,110280.0,110270.0,0.9234569]
[1761322650628,1e-08,110280.0,110270.0,0.9204569]
[1761322650823,1e-08,110280.0,110270.0,1.28608387]
[1761322651266,1e-08,110280.0,110270.0,1.32226615]
[1761322651445,1e-08,110280.0,110270.0,1.65426615]
[1761322653683,1e-08,110280.0,110270.0,1.66226615]
[1761322653899,1e-08,110280.0,110270.0,1.65426615]
[1761322654251,1e-08,110280.0,110270.0,1.67426615]
[1761322654448,1e-08,110280.0,110270.0,2.13710916]
[1761322654645,1e-08,110280.0,110270.0,1.70364128]
[1761322654883,1e-08,110280.0,110270.0,1.86132147]
[1761322655285,1e-08,110280.0,110270.0,2.03622147]
[1761322656001,1e-08,110280.0,110270.0,2.04622146]
[1761322656403,1e-08,110280.0,110270.0,2.02184633]
[1761322656620,1e-08,110280.0,110270.0,2.01684633]
[1761322657034,1e-08,110280.0,110270.0,1.99684633]
[1761322657213,1e-08,110280.0,110270.0,1.99184634]
[1761322657408,1e-08,110280.0,110270.0,2.01584634]
[1761322657652,1e-08,110280.0,110270.0,2.02584633]
[1761322658239,1e-08,110280.0,110270.0,2.07481314]
[1761322659510,1e-08,110280.0,110270.0,1.58379862]
[1761322659858,1e-08,110280.0,110270.0,2.06481315]
[1761322660052,1e-08,110280.0,110270.0,1.58379862]
[1761322660459,1e-08,110280.0,110270.0,1.57379863]
[1761322660656,1e-08,110280.0,110270.0,1.42359862]
[1761322660864,1e-08,110280.0,110270.0,0.88284539]
[1761322661066,1e-08,110280.0,110270.0,1.58209992]
[1761322662896,1e-08,110280.0,110270.0,2.03868635]
[1761322663097,1e-08,110280.0,110270.0,2.09026623]
[1761322663472,1e-08,110280.0,110270.0,2.10026622]
[1761322665810,1e-08,110280.0,110270.0,2.05129941]
[1761322673131,1e-08,110280.0,110270.0,2.10012733]
[1761322673722,1e-08,110280.0,110270.0,1.39091281]
[1761322673941,1e-08,110280.0,110270.0,1.59911282]
[1761322674151,1e-08,110280.0,110270.0,1.60911281]
[1761322674514,0.00906371,110330.0,110300.0,0.19035847]
[1761322674855,0.18129295,110320.0,110310.0,0.18130722]
[1761322675050,2.18129079,110320.0,110310.0,0.18130722]
[1761322675266,0.18129079,110320.0,110310.0,0.18130722]
[1761322676473,2.18129079,110320.0,110310.0,0.18130722]
[1761322676710,0.18129079,110320.0,110310.0,0.18130722]
[1761322677086,2.0,110320.0,110310.0,0.18130722]
[1761322677713,0.001,110320.0,110310.0,0.18130722]
[1761322678991,0.18229079,110320.0,110300.0,0.19035847]
[1761322679190,0.18229079,110320.0,110300.0,0.35051847]
[1761322679470,0.18229079,110320.0,110310.0,0.18130722]
[1761322679885,0.18229079,110320.0,110300.0,0.19035847]
[1761322680147,0.18129079,110320.0,110310.0,0.18130722]
[1761322680572,0.18229079,110320.0,110310.0,0.18130722]
[1761322680773,0.18366268,110320.0,110310.0,0.18130722]
[1761322680973,0.18266268,110320.0,110310.0,0.18130722]
[1761322681393,0.18366268,110320.0,110310.0,0.18130722]
[1761322681883,0.00237189,110320.0,110310.0,0.18130722]
[1761322682089,0.18366268,110320.0,110310.0,0.18130722]
[1761322684729,0.00237189,110320.0,110310.0,0.60478098]
[1761322685726,0.00237189,110320.0,110310.0,1.18841474]
[1761322685938,0.00237189,110320.0,110310.0,1.27823375]
[1761322685939,0.00137189,110320.0,110310.0,1.27823375]
[1761322686312,0.00237189,110320.0,110310.0,0.85475999]
[1761322686761,0.00137189,110320.0,110310.0,0.85475999]
[1761322687437,0.00137189,110320.0,110310.0,1.27823375]
[1761322691175,0.00137189,110320.0,110310.0,0.85475999]
[1761322691588,0.00137189,110320.0,110310.0,0.85675999]
[1761322692218,0.00137189,110320.0,110310.0,0.86275999]
[1761322692433,0.00137189,110320.0,110310.0,0.85675999]
[1761322692649,0.00137189,110320.0,110310.0,0.91479999]
[1761322692863,0.00137189,110320.0,110310.0,0.49932623]
[1761322693512,0.00137189,110320.0,110310.0,0.49732623]
[1761322693740,0.00137189,110320.0,110310.0,0.48932623]
[1761322695287,0.00137189,110320.0,110310.0,0.18130722]
[1761322696323,0.00137189,110320.0,110310.0,0.60461171]
[1761322697842,0.00137189,110320.0,110310.0,0.18130722]
[1761322698076,0.00137189,110320.0,110310.0,0.69443072]
[1761322698768,0.00137189,110320.0,110310.0,1.11773521]
[1761322698986,0.00137189,110320.0,110310.0,1.17577521]
[1761322699993,0.00137189,110320.0,110310.0,1.17777521]
[1761322700202,0.00137189,110320.0,110310.0,1.18577521]
[1761322700421,0.00137189,110320.0,110310.0,1.18377521]
[1761322700835,0.00137189,110320.0,110310.0,1.18577521]
[1761322702326,0.00137189,110320.0,110310.0,0.76247072]
[1761322703360,0.00137189,110320.0,110310.0,1.18577521]
[1761322703642,0.00137189,110320.0,110310.0,1.56195749]
[1761322707065,0.00137189,110320.0,110310.0,1.72586706]
[1761322707264,0.00137189,110320.0,110310.0,1.35957941]
[1761322707462,0.00137189,110320.0,110310.0,1.30153941]
[1761322707665,0.00137189,110320.0,110310.0,1.35957941]
[1761322707879,0.00137189,110320.0,110310.0,1.14125941]
[1761322708100,0.00137189,110320.0,110310.0,1.32699937]
[1761322708523,0.00137189,110320.0,110310.0,0.90369488]
[1761322708719,0.00137189,110320.0,110310.0,1.32699937]
[1761322709597,0.00137189,110320.0,110310.0,1.29081709]
[1761322709797,0.00137189,110320.0,110310.0,1.23273709]
[1761322710017,0.00137189,110320.0,110310.0,1.29077709]
[1761322710768,0.00137189,110320.0,110310.0,1.23273709]
[1761322710975,0.00137189,110320.0,110310.0,1.29077709]
[1761322711143,0.00137189,110320.0,110310.0,1.23273709]
[1761322711344,0.00137189,110320.0,110310.0,1.29077709]
[1761322711808,0.00137189,110320.0,110310.0,0.8674726]
[1761322712095,0.00137189,110320.0,110310.0,1.29077709]
[1761322713457,0.00137189,110320.0,110310.0,1.71408158]
[1761322713874,0.00137189,110320.0,110310.0,1.75026386]
[1761322714468,0.00137189,110320.0,110310.0,1.7828439]
[1761322714892,0.00137189,110320.0,110310.0,1.9081071]
[1761322715985,0.00137189,110320.0,110310.0,1.8981071]
[1761322716202,0.025,110370.0,110310.0,1.7484071]
[1761322716365,0.02548865,110370.0,110360.0,0.18122508]
[1761322716926,0.36548865,110370.0,110350.0,0.1812415]
[1761322717084,0.54669731,110370.0,110350.0,0.3417215]
[1761322717286,0.55573948,110370.0,110360.0,0.18122508]
[1761322717902,0.54669731,110370.0,110350.0,0.1812415]
[1761322718715,0.54669731,110370.0,110360.0,0.18122508]
[1761322718917,0.54669731,110370.0,110350.0,0.1812415]
[1761322719155,0.18122508,110360.0,110350.0,0.1812415]
[1761322721419,0.18122508,110360.0,110340.0,0.35082439]
[1761322722382,0.1812415,110350.0,110340.0,0.35082439]
[1761322722579,0.18122508,110360.0,110340.0,0.35082439]
[1761322722981,0.18222508,110360.0,110340.0,0.35082439]
[1761322723296,0.1812415,110350.0,110340.0,0.35082439]
[1761322723498,0.18122508,110360.0,110340.0,0.35082439]
[1761322723705,0.1812415,110350.0,110340.0,0.19030439]
[1761322724506,0.1822415,110350.0,110340.0,0.19030439]
[1761322725202,0.1822415,110350.0,110340.0,0.18125793]
[1761322727015,0.1822415,110350.0,110330.0,0.34171435]
[1761322727195,0.1822415,110350.0,110340.0,0.18125793]
[1761322727488,0.18326996,110350.0,110340.0,0.18125793]
[1761322727700,0.18326996,110350.0,110330.0,0.34171435]
[1761322727895,0.1822415,110350.0,110330.0,0.34171435]
[1761322728108,0.1812415,110350.0,110330.0,0.34171435]
[1761322728303,0.18125793,110340.0,110330.0,0.18127435]
[1761322728791,0.18127435,110330.0,110320.0,0.19035532]
[1761322729009,0.18125793,110340.0,110320.0,0.19035532]
[1761322729216,0.18127435,110330.0,110320.0,0.19035532]
[1761322729774,0.18125793,110340.0,110320.0,0.19035532]
[1761322730137,0.18125793,110340.0,110330.0,0.18127435]
[1761322730416,0.18125793,110340.0,110320.0,0.19035532]
[1761322732270,0.18125793,110340.0,110330.0,0.18127435]
[1761322733088,0.18194363,110340.0,110330.0,0.18127435]
[1761322737523,0.18194363,110340.0,110320.0,0.19035532]
[1761322737693,0.18125793,110340.0,110330.0,0.18127435]
[1761322738719,0.18125793,110340.0,110320.0,0.19035532]
[1761322739388,0.18125793,110340.0,110330.0,0.18127435]
[1761322739597,0.18125793,110340.0,110320.0,0.19035532]
[1761322739816,0.18127435,110330.0,110310.0,0.21478153]
[1761322740024,0.18127435,110330.0,110320.0,0.18129079]
[1761322740651,0.18127435,110330.0,110310.0,0.35065258]
[1761322740861,0.18127435,110330.0,110320.0,0.18129079]
[1761322741039,0.18129079,110320.0,110310.0,0.19037258]
[1761322741904,0.18129079,110320.0,110300.0,0.35062436]
[1761322742118,0.18129079,110320.0,110310.0,0.18130722]
[1761322742325,0.52127435,110330.0,110310.0,0.18130722]
[1761322742530,2.0,110320.0,110310.0,0.18930722]
[1761322742698,2.0,110320.0,110310.0,0.18130722]
[1761322742902,0.18129079,110320.0,110310.0,0.18130722]
[1761322744492,0.18129079,110320.0,110310.0,0.18107594]
[1761322745173,0.61109336,110330.0,110310.0,0.18107594]
[1761322745379,2.0,110320.0,110310.0,0.18107594]
[1761322745557,0.18129079,110320.0,110310.0,0.18107594]
[1761322748501,0.17867879,110320.0,110310.0,0.18107594]
[1761322748730,2.0,110320.0,110310.0,0.18107594]
[1761322748994,0.61143624,110330.0,110310.0,0.18107594]
[1761322749367,0.18129079,110320.0,110310.0,0.18107594]
[1761322749593,0.18329079,110320.0,110310.0,0.18107594]
[1761322750203,0.002,110320.0,110310.0,0.18107594]
[1761322750421,0.002,110320.0,110310.0,0.60438043]
[1761322751129,0.002,110320.0,110310.0,0.76458043]
[1761322752333,0.002,110320.0,110310.0,0.34127594]
[1761322752547,0.002,110320.0,110310.0,0.76458043]
[1761322753008,0.002,110320.0,110310.0,1.18788492]
[1761322753250,0.002,110320.0,110310.0,1.30211288]
[1761322753483,0.002,110320.0,110310.0,0.87880839]
[1761322754374,0.00034288,110330.0,110320.0,0.18129079]
[1761322754604,0.00034288,110330.0,110320.0,0.60459528]
[1761322754810,0.00034288,110330.0,110320.0,1.02748333]
[1761322755574,0.00034288,110330.0,110320.0,0.18129079]
[1761322755782,0.00034288,110330.0,110320.0,1.02748333]
[1761322756880,0.00234288,110330.0,110320.0,1.02748333]
[1761322757079,0.00034288,110330.0,110320.0,1.02748333]
[1761322757462,0.00134288,110330.0,110320.0,1.02748333]
[1761322758712,0.00134288,110330.0,110320.0,1.15348462]
[1761322759088,0.00134288,110330.0,110320.0,1.1445214]
[1761322759331,0.00134288,110330.0,110320.0,1.16893035]
[1761322759531,0.00134288,110330.0,110320.0,1.14171129]
[1761322759938,0.00034288,110330.0,110320.0,1.14171129]
[1761322760349,0.00034288,110330.0,110320.0,0.19229079]
[1761322760553,0.00034288,110330.0,110320.0,0.35245079]
[1761322760756,0.00034288,110330.0,110320.0,0.19229079]
[1761322761493,0.00034288,110330.0,110320.0,0.19429079]
[1761322761702,0.00034288,110330.0,110320.0,0.18329079]
[1761322762038,0.00034288,110330.0,110320.0,0.18129079]
[1761322763093,0.18161723,110330.0,110310.0,0.34127594]
[1761322763310,0.18361723,110330.0,110310.0,0.34127594]
[1761322763554,0.18361723,110330.0,110320.0,0.18129079]
[1761322764174,0.18161723,110330.0,110320.0,0.18129079]
[1761322764599,0.18361723,110330.0,110320.0,0.18129079]
[1761322764831,0.18161723,110330.0,110320.0,0.18129079]
[1761322765248,0.18361723,110330.0,110320.0,0.18129079]
[1761322767023,0.00234288,110330.0,110320.0,0.18129079]
[1761322767408,0.18361723,110330.0,110320.0,0.18129079]
[1761322769690,0.52062625,110340.0,110320.0,0.18129079]
[1761322770018,0.18127435,110330.0,110320.0,0.18129079]
[1761322771680,0.18327435,110330.0,110320.0,0.18129079]
[1761322778972,0.18129079,110320.0,110310.0,0.1901413]
[1761322779188,0.18129079,110320.0,110310.0,0.18130722]
[1761322780202,0.18129079,110320.0,110300.0,0.19034436]
[1761322780838,0.26676439,110330.0,110300.0,0.19034436]
[1761322781048,0.18129079,110320.0,110310.0,0.18130722]
[1761322781295,0.26676439,110330.0,110310.0,0.18130722]
[1761322781496,2.0,110320.0,110310.0,0.18130722]
[1761322781926,0.51694538,110330.0,110320.0,0.18129079]
[1761322782356,0.51694538,110330.0,110310.0,0.18130722]
[1761322782777,0.00064258,110320.0,110310.0,0.18130722]
[1761322782982,0.00046388,110320.0,110310.0,0.18130722]
[1761322783604,0.51694538,110330.0,110310.0,0.18130722]
[1761322783807,0.51694538,110330.0,110320.0,0.18129079]
[1761322784056,0.51694538,110330.0,110310.0,0.18130722]
[1761322784246,0.51994538,110330.0,110310.0,0.18130722]
[1761322785511,0.51994538,110330.0,110320.0,0.18129079]
[1761322785726,0.52227435,110330.0,110320.0,0.18129079]
[1761322786175,0.17464081,110340.0,110320.0,0.18129079]
[1761322786386,0.18127435,110330.0,110320.0,0.18129079]
[1761322786567,0.18427435,110330.0,110320.0,0.18129079]
[1761322787119,0.18127435,110330.0,110320.0,0.18129079]
[1761322787644,0.18427435,110330.0,110320.0,0.18129079]
[1761322788102,0.003,110330.0,110320.0,0.18129079]
[1761322788393,0.18427435,110330.0,110320.0,0.18129079]
[1761322790684,0.18127435,110330.0,110320.0,0.18129079]
[1761322791276,0.18127435,110330.0,110310.0,0.18130722]
[1761322791633,0.18127435,110330.0,110320.0,0.18129079]
[1761322791832,0.27109336,110330.0,110310.0,0.18130722]
[1761322792203,0.18129079,110320.0,110310.0,0.18130722]
[1761322792400,0.27109336,110330.0,110310.0,0.18130722]
[1761322793028,0.18129079,110320.0,110310.0,0.18130722]
[1761322793273,0.27309336,110330.0,110310.0,0.18130722]
[1761322793454,0.61309336,110330.0,110320.0,0.18129079]
[1761322795863,0.61109336,110330.0,110320.0,0.18129079]
[1761322798074,0.52127435,110330.0,110320.0,0.18129079]
[1761322798810,0.50627435,110330.0,110320.0,0.18129079]
[1761322800314,0.325,110330.0,110320.0,0.18129079]
[1761322801500,2.0,110340.0,110330.0,0.18127435]
[1761322803143,0.6111561,110350.0,110340.0,0.18125793]
[1761322803342,0.65246781,110350.0,110340.0,0.18125793]
[1761322803582,0.18125793,110340.0,110330.0,0.18127435]
[1761322804869,0.65246781,110350.0,110330.0,0.18127435]
[1761322805074,0.65246781,110350.0,110340.0,0.18125793]
[1761322805277,0.37234523,110350.0,110340.0,0.18125793]
[1761322805477,0.03234523,110350.0,110340.0,0.6043542]
[1761322805908,0.26207831,110360.0,110350.0,0.1812415]
[1761322806113,0.08085253,110360.0,110350.0,0.1812415]
[1761322806350,0.60207761,110360.0,110350.0,0.1812415]
[1761322807340,0.55357031,110360.0,110350.0,0.1812415]
[1761322807748,0.55459863,110360.0,110350.0,0.1812415]
[1761322810368,0.55459863,110360.0,110340.0,0.18125793]
[1761322810545,0.55357031,110360.0,110350.0,0.1812415]
[1761322822689,0.37234523,110360.0,110350.0,0.1812415]
[1761322823060,0.55459863,110360.0,110350.0,0.1812415]
[1761322823492,0.37337355,110360.0,110350.0,0.1812415]
[1761322823679,0.00102832,110360.0,110350.0,0.60432497]
[1761322823877,0.00102832,110360.0,110350.0,0.3413615]
[1761322824792,0.00102832,110360.0,110350.0,0.76444497]
[1761322825227,0.03254523,110380.0,110350.0,0.91230398]
[1761322825466,0.03254523,110380.0,110370.0,1.3673756]
[1761322825467,0.00048866,110380.0,110370.0,1.3673756]
[1761322825634,0.00048866,110380.0,110370.0,1.73277689]
[1761322825833,1e-08,110380.0,110370.0,1.73277689]
[1761322826235,1e-08,110380.0,110370.0,1.7599828]
[1761322826698,1e-08,110380.0,110370.0,1.9201028]
[1761322826820,1e-08,110380.0,110370.0,1.22143705]
[1761322827019,1e-08,110380.0,110370.0,1.27947705]
[1761322827539,1e-08,110380.0,110370.0,1.73256052]
[1761322827970,1e-08,110380.0,110370.0,1.30447705]
[1761322829251,1e-08,110380.0,110370.0,1.27947705]
[1761322829462,1e-08,110380.0,110370.0,1.06131705]
[1761322829694,1e-08,110380.0,110370.0,0.93939705]
[1761322829912,1e-08,110380.0,110370.0,0.94139705]
[1761322831191,0.00068534,110380.0,110370.0,0.94139705]
[1761322832901,0.00068534,110380.0,110370.0,0.88339705]
[1761322833102,0.00068534,110380.0,110370.0,0.94139705]
[1761322833518,0.00068534,110380.0,110370.0,1.36448052]
[1761322833738,0.00068534,110380.0,110370.0,0.94139705]